bitfinex/quotes_ETHUSD_20250511
["timestamp","ask_amount","ask_price","bid_price","bid_amount"]
[1746993762307,0.05,2507.4,2507.3,16.292264]
[1746993762515,0.05,2507.4,2507.3,11.5062]
[1746993763204,0.05,2507.4,2507.3,0.7562]
[1746993763582,0.05,2507.4,2507.2,2.75]
[1746993763782,0.05,2507.4,2507.1,10.75]
[1746993764112,0.05,2507.4,2507.0,0.8284]
[1746993766346,0.05,2507.4,2507.1,8.0]
[1746993767475,0.05,2507.4,2507.1,8.03988186]
[1746993767756,0.05,2507.4,2507.1,8.0]
[1746993768949,0.05,2507.4,2507.2,2.746]
[1746993769245,0.05,2507.4,2507.1,8.0]
[1746993769558,3.98873543,2507.1,2506.2,0.7784]
[1746993769720,0.05,2507.4,2506.2,0.7784]
[1746993769721,3.98928836,2506.8,2506.2,0.7784]
[1746993770319,3.98962696,2506.5,2505.7,0.7784]
[1746993770535,3.98962696,2506.5,2505.4,3.5274]
[1746993770860,2.76556875,2506.6,2505.6,8.0]
[1746993771217,6.75504211,2506.6,2505.6,8.0]
[1746993771418,2.76556875,2506.6,2505.6,8.0]
[1746993772570,3.98986318,2506.4,2505.6,8.0]
[1746993773762,3.98969241,2506.5,2505.6,8.03990553]
[1746993774263,5.99309571,2506.5,2505.6,8.0]
[1746993774469,2.00346875,2506.5,2505.6,8.0]
[1746993774630,5.99315537,2506.5,2505.6,8.63336386]
[1746993775760,3.9897925,2506.4,2505.6,8.63336386]
[1746993775963,2.00346875,2506.5,2505.7,0.03990551]
[1746993776150,2.00346875,2506.5,2505.6,8.63336386]
[1746993776490,5.99309716,2506.5,2505.6,8.63336386]
[1746993776694,3.99130922,2505.5,2504.3,0.7958]
[1746993776893,2.771,2505.4,2504.3,0.7958]
[1746993777360,3.99188173,2505.1,2504.3,0.7958]
[1746993777562,3.99177479,2505.2,2504.3,0.7958]
[1746993777768,3.99164812,2505.3,2504.3,0.7958]
[1746993777963,3.99171379,2505.2,2504.3,0.7958]
[1746993778164,3.99186714,2505.1,2504.3,0.7958]
[1746993778366,0.7898,2505.0,2504.1,0.05]
[1746993778560,3.99279938,2504.6,2504.1,0.05]
[1746993778777,2.774,2504.8,2504.1,0.05]
[1746993779381,3.99259023,2504.7,2504.1,0.05]
[1746993780501,2.774,2504.8,2504.1,0.05]
[1746993781058,2.772,2505.0,2504.1,0.05]
[1746993781256,3.99329127,2504.2,2504.1,0.05]
[1746993781499,0.7748,2504.2,2504.1,0.05]
[1746993781687,2.801,2504.2,2504.1,0.05]
[1746993782218,1.3816,2504.1,2503.1,0.05]
[1746993782393,1.3816,2504.1,2502.1,0.05]
[1746993782394,0.55,2502.5,2502.1,0.05]
[1746993782700,2.886,2502.5,2502.1,0.05]
[1746993782881,3.1707,2503.3,2502.1,0.8768]
[1746993783202,2.886,2503.1,2502.1,0.8768]
[1746993783367,3.99552501,2502.8,2502.1,0.05]
[1746993783568,2.885,2502.7,2502.1,0.05]
[1746993783995,0.5,2502.6,2502.1,0.05]
[1746993784161,4.62294368,2502.6,2502.1,0.05]
[1746993784362,0.5,2502.6,2502.1,0.05]
[1746993784891,3.7214,2503.1,2502.1,0.05]
[1746993785256,3.99520908,2503.0,2502.1,0.05]
[1746993785502,3.7214,2503.1,2502.1,0.05]
[1746993785800,3.99560142,2502.8,2502.1,0.05]
[1746993785998,3.7214,2503.1,2502.1,0.05]
[1746993786199,7.71656773,2503.1,2502.1,0.05]
[1746993786699,3.7214,2503.1,2502.1,0.05]
[1746993787006,3.99595642,2502.6,2502.1,0.05]
[1746993787172,3.99648309,2502.2,2502.1,0.05]
[1746993787374,6.90548309,2502.2,2502.1,0.05]
[1746993788012,7.45548309,2502.2,2502.1,0.05]
[1746993788173,7.45548309,2502.2,2500.5,17.271]
[1746993788174,3.9979278,2501.3,2500.8,0.7816]
[1746993788376,2.914,2501.3,2500.8,0.7816]
[1746993788699,0.55,2502.2,2500.8,0.7816]
[1746993789005,0.55,2500.5,2499.2,0.7816]
[1746993789214,4.0005551,2499.7,2499.2,0.7816]
[1746993789415,2.975,2499.6,2498.5,0.7316]
[1746993789576,2.983,2499.5,2498.6,0.04000524]
[1746993789779,7.10594368,2499.5,2497.3,14.371]
[1746993790012,0.8234,2499.4,2497.3,14.371]
[1746993790236,0.8234,2499.4,2498.3,8.0]
[1746993790437,0.8234,2500.1,2498.4,1.1006]
[1746993790738,0.8234,2501.0,2498.5,6.056]
[1746993790887,0.8234,2500.2,2498.6,0.04000817]
[1746993791093,0.55,2500.1,2497.6,1.93443223]
[1746993791303,4.12294368,2499.4,2497.9,3.008]
[1746993791643,0.55,2500.1,2497.9,3.008]
[1746993791644,3.062,2499.7,2498.2,0.04001792]
[1746993791803,4.00140411,2499.2,2498.2,0.08688395]
[1746993792004,4.12294368,2499.4,2498.2,0.08688395]
[1746993792206,0.8234,2499.9,2498.3,3.073]
[1746993792438,0.8234,2500.7,2498.6,0.55]
[1746993792641,4.12294368,2500.4,2498.7,0.7816]
[1746993792949,4.12294368,2500.4,2498.9,8.0]
[1746993793109,7.20094368,2500.4,2499.0,0.04000781]
[1746993793306,3.078,2500.4,2499.0,1.41250078]
[1746993793508,13.55577088,2501.1,2499.3,0.7816]
[1746993793509,10.3808327,2501.1,2499.3,0.7816]
[1746993793709,3.99923948,2500.5,2499.4,8.0]
[1746993793909,3.083,2500.6,2499.5,0.08021728]
[1746993794108,3.083,2500.6,2499.5,0.04000412]
[1746993794345,3.083,2500.6,2499.5,0.04000002]
[1746993794527,3.083,2500.6,2499.5,1.22296002]
[1746993794847,3.083,2500.6,2498.8,2.5452986]
[1746993794848,1.3629,2499.8,2498.4,0.8119]
[1746993795074,4.12294368,2499.5,2498.4,0.8119]
[1746993795422,4.12294368,2499.5,2497.7,8.0]
[1746993795423,4.0014452,2499.1,2498.0,0.7957]
[1746993795634,4.12294368,2499.5,2498.0,0.7957]
[1746993795805,6.108,2500.1,2498.3,0.7957]
[1746993796005,6.108,2500.1,2498.5,0.7957]
[1746993796207,6.108,2500.1,2498.7,0.7957]
[1746993796416,6.108,2500.1,2498.9,8.0]
[1746993796855,4.12294368,2499.7,2498.7,0.7957]
[1746993797169,10.23094368,2500.1,2498.8,0.04001462]
[1746993797372,6.108,2500.1,2498.8,0.04001462]
[1746993797661,10.10786347,2500.1,2498.7,0.7957]
[1746993797850,3.009,2500.1,2498.9,8.0]
[1746993798058,3.99942208,2500.4,2499.1,8.0]
[1746993798254,3.113,2500.5,2499.2,0.7957]
[1746993798622,3.112,2500.4,2499.2,0.83570836]
[1746993798831,9.51460098,2500.8,2499.2,0.7957]
[1746993799048,3.99862515,2500.9,2499.3,0.87957]
[1746993799254,0.7575,2501.0,2499.5,8.0]
[1746993799454,3.99916387,2500.6,2499.7,8.0]
[1746993799661,0.7575,2501.0,2499.7,8.0]
[1746993799829,3.9990099,2500.7,2499.7,8.0]
[1746993800024,0.7575,2501.0,2499.0,1.1113]
[1746993800025,5.51573331,2500.8,2499.0,1.1113]
[1746993800230,4.00024704,2499.9,2498.7,3.01]
[1746993800530,0.7575,2500.3,2498.8,8.04001261]
[1746993800531,3.122,2500.2,2498.8,8.04001261]
[1746993800730,4.00002195,2500.0,2498.8,8.0]
[1746993800929,4.00002195,2500.0,2497.6,2.03443223]
[1746993800930,5.51573331,2500.0,2497.6,2.03443223]
[1746993801163,4.00060434,2499.7,2498.2,6.13]
[1746993801352,4.00067949,2499.6,2498.3,0.618]
[1746993801666,4.00038737,2499.8,2498.4,8.0]
[1746993801966,4.00039544,2499.8,2498.5,0.7944]
[1746993802165,0.55,2499.9,2498.5,0.7944]
[1746993802339,0.55,2499.5,2498.5,0.7944]
[1746993802537,4.0021197,2498.7,2497.7,0.7944]
[1746993802740,3.138,2498.8,2497.8,0.04003146]
[1746993802969,4.00216395,2498.7,2497.7,0.7944]
[1746993803170,7.13992524,2498.8,2497.7,0.7944]
[1746993803342,3.138,2498.8,2497.7,0.7944]
[1746993803666,3.138,2498.8,2497.8,0.0400313]
[1746993803868,3.138,2498.8,2497.9,3.129]
[1746993804039,0.771,2499.7,2498.2,0.8034249]
[1746993804245,4.00016,2499.9,2498.2,0.7634]
[1746993804562,8.66173331,2500.0,2498.4,8.7634]
[1746993804770,4.00056535,2499.7,2498.5,4.31994]
[1746993804945,4.00064049,2499.6,2498.5,4.31994]
[1746993805124,4.00065873,2499.6,2498.5,4.31994]
[1746993805328,8.66173331,2500.0,2498.5,4.31994]
[1746993805329,4.00016,2499.9,2498.5,4.31994]
[1746993805550,0.55,2499.9,2498.6,8.0]
[1746993805755,4.00117773,2499.3,2498.4,0.7634]
[1746993805953,4.00187021,2498.9,2498.4,0.7634]
[1746993806156,5.51573331,2498.5,2498.1,0.05]
[1746993806472,0.7923,2497.8,2497.1,0.05]
[1746993806671,11.84073331,2497.7,2497.1,0.05]
[1746993806884,10.3286857,2497.7,2497.1,0.05]
[1746993807181,4.00392347,2497.6,2497.1,0.05]
[1746993807482,0.7923,2498.3,2497.1,0.05]
[1746993807635,0.55,2498.1,2497.1,0.05]
[1746993807835,3.201,2498.2,2497.1,0.05]
[1746993807836,4.00354727,2497.8,2497.1,0.05]
[1746993808063,4.79503971,2498.3,2497.1,0.05]
[1746993808235,4.0033975,2497.9,2497.1,0.05]
[1746993808442,3.129,2498.0,2497.1,0.05]
[1746993808868,3.129,2498.0,2497.2,0.8306]
[1746993809067,6.27953331,2498.6,2497.2,0.8306]
[1746993809068,4.76611973,2498.6,2497.2,0.8306]
[1746993809277,4.00299305,2498.2,2497.2,1.72266397]
[1746993809433,3.9968,2498.6,2497.2,1.72266397]
[1746993809770,4.00256163,2498.4,2497.2,1.72266397]
[1746993810132,4.00241222,2498.5,2497.4,0.762]
[1746993810246,3.233,2498.6,2497.4,0.762]
[1746993810448,4.00250414,2498.5,2497.4,0.762]
[1746993810654,7.23529471,2498.6,2497.5,0.0400377]
[1746993810966,4.7854401,2499.5,2497.7,0.762]
[1746993811280,4.00222877,2498.7,2497.9,0.762]
[1746993811464,3.246,2498.9,2497.9,0.762]
[1746993811768,4.00217622,2498.7,2497.9,0.762]
[1746993811981,3.246,2498.9,2497.9,0.762]
[1746993812348,4.00201555,2498.8,2497.9,0.762]
[1746993812745,3.246,2498.9,2497.9,1.99123]
[1746993813074,3.13,2499.1,2497.9,1.99123]
[1746993813281,3.13,2499.1,2497.9,1.9512]
[1746993813438,7.1315183,2499.1,2497.9,1.9512]
[1746993813783,3.13,2499.1,2498.1,0.762]
[1746993813978,3.13,2499.1,2498.2,0.0400223]
[1746993814165,7.24916885,2499.3,2498.2,0.0400223]
[1746993814555,4.00130936,2499.2,2498.2,0.0400223]
[1746993814754,4.00130936,2499.2,2498.1,0.762]
[1746993814944,4.00130936,2499.2,2498.2,0.0400223]
[1746993815140,6.30033331,2498.9,2498.1,0.762]
[1746993815356,7.26703854,2498.8,2498.1,0.762]
[1746993815651,3.265,2498.8,2498.1,0.762]
[1746993815865,4.7859114,2499.2,2498.1,0.762]
[1746993816053,4.00232634,2498.6,2498.1,0.762]
[1746993816397,4.00208108,2498.7,2497.6,8.0]
[1746993816543,4.00208108,2498.7,2497.7,0.762]
[1746993816544,4.00281361,2498.3,2497.7,0.762]
[1746993816740,1.3346,2498.2,2497.1,0.05]
[1746993816943,0.55,2497.9,2497.1,0.05]
[1746993817186,3.297,2497.8,2497.1,0.05]
[1746993817339,4.00378816,2497.7,2497.1,0.05]
[1746993817540,3.297,2497.8,2497.1,0.05]
[1746993817789,0.7846,2498.2,2497.1,0.05]
[1746993818088,4.00234758,2498.6,2497.2,0.762]
[1746993818089,4.0031421,2498.1,2497.2,0.762]
[1746993818255,0.55,2498.4,2497.2,0.762]
[1746993818644,4.00398468,2497.6,2497.2,0.762]
[1746993818838,4.00336282,2497.9,2497.2,0.762]
[1746993819055,4.0033203,2498.0,2497.2,0.762]
[1746993819300,4.00312091,2498.1,2497.2,0.762]
[1746993819438,4.00304231,2498.1,2497.2,0.762]
[1746993819643,4.00295429,2498.2,2497.2,0.762]
[1746993820080,0.22001879,2498.1,2497.2,0.762]
[1746993820282,0.55,2497.9,2497.1,0.05]
[1746993820497,3.307,2497.8,2497.1,0.05]
[1746993820643,4.00401062,2497.5,2497.1,0.05]
[1746993820990,0.22001879,2497.7,2497.1,0.05]
[1746993821344,4.22377749,2497.7,2497.1,0.05]
[1746993821594,0.22001879,2497.7,2497.1,0.05]
[1746993821792,4.00328316,2498.0,2497.2,0.762]
[1746993822282,4.00377434,2497.7,2497.2,0.762]
[1746993822583,4.00368636,2497.7,2497.2,0.762]
[1746993822780,3.312,2498.3,2497.2,0.762]
[1746993822955,0.55,2497.9,2497.2,0.762]
[1746993823157,4.00432467,2497.3,2497.2,0.762]
[1746993823355,4.00432467,2497.3,2497.1,0.05]
[1746993823356,4.55448502,2497.2,2497.1,0.05]
[1746993823558,4.00608925,2496.2,2495.1,0.05]
[1746993823759,17.45242256,2496.2,2495.1,0.05]
[1746993824281,4.83729477,2495.2,2495.1,0.05]
[1746993824481,11.98629477,2495.2,2495.1,0.05]
[1746993824781,11.65622744,2495.2,2495.1,0.05]
[1746993824987,0.21993267,2495.2,2495.1,0.05]
[1746993825213,3.36,2496.0,2495.1,0.05]
[1746993825348,4.00769477,2495.2,2495.1,0.05]
[1746993825543,3.389,2495.2,2495.1,0.05]
[1746993826447,3.393,2495.8,2495.1,0.05]
[1746993826646,0.55,2495.8,2495.1,0.05]
[1746993826846,6.785,2495.7,2495.1,0.05]
[1746993827088,4.0071931,2495.6,2495.1,0.05]
[1746993827295,0.55,2495.7,2495.1,0.05]
[1746993827783,3.401,2495.9,2495.1,0.8802]
[1746993827970,0.55,2495.8,2495.1,0.8802]
[1746993828170,4.00698864,2495.7,2495.1,0.05]
[1746993828352,3.401,2495.9,2495.1,0.05]
[1746993828555,5.51573331,2495.8,2495.1,0.05]
[1746993828887,3.401,2495.9,2495.1,0.05]
[1746993829096,3.433,2495.9,2495.1,0.05]
[1746993829509,3.433,2495.9,2495.2,0.7837]
[1746993829711,5.51573331,2495.8,2495.1,0.05]
[1746993829921,3.433,2495.9,2495.1,0.05]
[1746993830238,4.00930157,2494.2,2494.1,0.05]
[1746993830515,3.53,2494.6,2494.1,0.05]
[1746993830862,17.961,2494.9,2494.2,0.7837]
[1746993831166,5.51573331,2495.4,2494.2,0.7837]
[1746993831367,3.549,2495.7,2494.4,0.7837]
[1746993831592,3.549,2495.7,2494.6,0.7837]
[1746993831818,4.00705241,2495.6,2494.6,0.7837]
[1746993831969,4.00732933,2495.5,2494.6,0.7837]
[1746993832161,3.549,2495.7,2494.6,0.7837]
[1746993832396,4.00747609,2495.4,2494.6,0.7837]
[1746993832576,4.55735715,2495.5,2494.6,0.7837]
[1746993832785,4.00759803,2495.3,2494.6,0.7837]
[1746993832993,4.00829284,2494.9,2494.2,0.7837]
[1746993833298,3.555,2494.9,2494.2,0.7837]
[1746993833501,3.553,2495.1,2494.2,0.7837]
[1746993833708,3.556,2495.6,2494.3,0.89520481]
[1746993833900,3.556,2495.6,2494.5,0.779]
[1746993834217,3.556,2495.6,2494.7,0.779]
[1746993834371,3.556,2495.6,2494.8,0.11150481]
[1746993834567,7.068,2495.9,2495.0,0.779]
[1746993835626,7.068,2495.9,2495.1,0.15158083]
[1746993835830,7.068,2495.9,2495.1,0.11150481]
[1746993836376,4.00552885,2496.6,2495.2,0.779]
[1746993836724,4.00630586,2496.1,2495.2,0.779]
[1746993836931,4.00642312,2496.0,2495.3,0.11150481]
[1746993837076,3.544,2496.5,2495.2,0.779]
[1746993837280,4.0060577,2496.3,2495.2,0.779]
[1746993837511,4.0060993,2496.2,2495.3,0.10944334]
[1746993837778,4.00597447,2496.3,2495.2,0.779]
[1746993837983,3.544,2496.5,2495.3,0.10944334]
[1746993838222,4.00585781,2496.4,2495.2,8.779]
[1746993838427,4.0068321,2495.8,2495.3,0.10934279]
[1746993838630,6.31843331,2496.3,2495.2,0.779]
[1746993838922,4.00689185,2495.7,2494.8,0.779]
[1746993839125,3.516,2495.8,2494.8,0.779]
[1746993839126,4.00705738,2495.6,2494.8,0.779]
[1746993839280,3.581,2495.5,2494.8,0.779]
[1746993839985,3.581,2495.5,2494.9,0.0984432]
[1746993840202,3.581,2495.5,2494.9,0.13852242]
[1746993840378,4.00596389,2496.3,2495.0,0.81907484]
[1746993840579,3.575,2496.4,2495.0,0.779]
[1746993840818,3.575,2496.5,2495.2,0.779]
[1746993840976,3.578,2497.3,2495.5,0.779]
[1746993841193,4.00501466,2496.9,2495.7,0.779]
[1746993841431,5.51573331,2496.5,2495.7,0.779]
[1746993841634,5.51573331,2496.5,2493.3,2.393]
[1746993841635,5.51573331,2496.1,2495.3,0.779]
[1746993841783,4.00658671,2495.9,2495.3,0.779]
[1746993841984,4.00659228,2495.9,2495.3,0.779]
[1746993842231,4.0067313,2495.8,2495.4,0.0984432]
[1746993842432,4.00608925,2496.2,2495.3,0.779]
[1746993842720,3.634,2496.7,2495.5,0.779]
[1746993842921,3.634,2496.7,2495.7,0.779]
[1746993843229,3.634,2496.7,2495.9,0.779]
[1746993843384,4.00467032,2497.1,2495.9,0.779]
[1746993843385,4.00488236,2497.0,2495.9,0.779]
[1746993843577,3.632,2497.1,2496.0,0.0984432]
[1746993843824,4.00521514,2496.8,2496.1,0.81905723]
[1746993843977,3.627,2497.1,2496.1,0.81905723]
[1746993843978,3.627,2497.1,2496.1,0.779]
[1746993844182,4.0053137,2496.7,2496.1,0.779]
[1746993844607,3.627,2497.1,2496.1,0.779]
[1746993844798,3.627,2497.1,2496.3,0.779]
[1746993844996,7.63175442,2497.1,2496.3,0.779]
[1746993845405,10.24,2497.4,2496.3,0.779]
[1746993845726,7.62238127,2497.3,2496.3,0.779]
[1746993846029,7.62242492,2497.3,2496.3,0.779]
[1746993846228,3.618,2497.3,2496.3,0.779]
[1746993846717,10.24,2497.4,2496.3,0.779]
[1746993846911,14.24425109,2497.4,2496.3,0.779]
[1746993847114,0.05,2497.4,2496.3,0.779]
[1746993847583,0.05,2497.4,2496.5,8.0]
[1746993847777,0.05,2497.4,2496.8,0.779]
[1746993847985,0.05,2497.4,2496.9,0.86634691]
[1746993850373,4.00480576,2497.0,2496.9,0.08734691]
[1746993850842,4.00480576,2497.0,2496.1,0.8209]
[1746993851126,4.00658598,2495.9,2495.7,0.8209]
[1746993851325,7.60748985,2496.0,2495.7,0.8209]
[1746993851526,3.601,2496.0,2494.7,8.0]
[1746993851747,4.00665971,2495.9,2494.8,1.9724]
[1746993851932,3.601,2496.0,2494.9,0.8209]
[1746993852452,5.51573331,2495.2,2494.6,0.8209]
[1746993852626,7.113,2495.1,2494.3,0.8209]
[1746993852811,4.00817877,2494.9,2494.3,0.8209]
[1746993853011,4.00805715,2495.0,2494.3,0.8209]
[1746993853208,7.113,2495.1,2494.3,0.8209]
[1746993853409,7.113,2495.1,2494.4,0.04009203]
[1746993853647,7.113,2495.1,2494.3,0.8209]
[1746993853844,4.00718879,2495.6,2494.3,0.8209]
[1746993854015,4.00747275,2495.4,2494.3,0.8209]
[1746993854521,6.28203331,2496.0,2494.3,0.8209]
[1746993854722,4.0067313,2495.8,2494.5,0.8284]
[1746993855247,7.5937313,2495.8,2494.5,0.8284]
[1746993855415,7.59379922,2495.8,2494.5,0.8284]
[1746993855615,3.587,2495.8,2494.6,0.04007537]
[1746993855938,4.00696532,2495.7,2494.7,0.8284]
[1746993856140,3.587,2495.8,2494.7,0.8284]
[1746993856327,3.587,2495.8,2494.8,0.04007538]
[1746993856512,3.587,2495.8,2494.8,0.04007539]
[1746993856711,14.414,2496.3,2494.7,0.8284]
[1746993856712,4.00655367,2496.0,2494.7,0.8284]
[1746993856913,3.573,2495.9,2494.7,0.8284]
[1746993857161,4.00744054,2495.4,2494.7,0.8284]
[1746993857365,4.00769139,2495.3,2494.7,0.8284]
[1746993858533,3.516,2495.5,2494.7,0.8284]
[1746993858733,4.00461378,2497.2,2494.7,0.8284]
[1746993858734,24.604,2496.3,2494.7,0.8284]
[1746993858951,4.00698032,2495.7,2494.7,0.8284]
[1746993859527,3.551,2496.0,2494.9,0.7785]
[1746993859741,3.551,2496.0,2495.0,0.87785]
[1746993859941,14.414,2496.3,2495.1,0.04007254]
[1746993860157,3.551,2496.2,2495.2,0.7785]
[1746993860525,7.55712309,2496.2,2495.3,0.04006885]
[1746993860721,7.55712309,2496.2,2495.3,0.07919262]
[1746993860935,4.00612309,2496.2,2495.3,1.24056926]
[1746993861140,4.00618585,2496.2,2495.4,0.07919262]
[1746993861525,4.00675299,2495.8,2495.4,0.07919262]
[1746993861724,12.57473331,2496.4,2495.4,0.07919262]
[1746993862023,0.22022238,2496.3,2495.5,0.07723333]
[1746993862338,4.00622063,2496.2,2495.2,0.7785]
[1746993862539,0.22022238,2496.3,2495.3,0.04006723]
[1746993862887,3.531,2496.5,2495.4,0.7785]
[1746993863166,7.53662277,2496.5,2495.5,0.04006559]
[1746993863367,3.531,2496.5,2495.6,0.7785]
[1746993863569,4.00529498,2496.7,2495.5,0.04006559]
[1746993863570,12.19346875,2497.3,2495.8,0.7785]
[1746993863860,2.00346875,2496.9,2496.0,0.7785]
[1746993864020,4.00521336,2496.8,2496.0,0.7785]
[1746993864726,2.00346875,2496.9,2496.0,0.7785]
[1746993864928,2.00346875,2496.9,2496.1,0.04005645]
[1746993865150,2.00346875,2496.9,2496.2,0.7552]
[1746993865400,4.00481672,2497.0,2496.2,0.7552]
[1746993865773,5.56573331,2497.4,2496.4,8.0]
[1746993865774,0.05,2497.4,2496.4,8.0]
[1746993866077,4.05429681,2497.4,2496.6,0.7552]
[1746993866362,0.05,2497.4,2496.6,0.7552]
[1746993866785,0.05,2497.4,2496.7,0.04004738]
[1746993867381,0.05,2497.4,2496.8,0.7552]
[1746993868277,0.05,2497.4,2496.9,0.0400454]
[1746993868438,0.05,2497.4,2496.8,0.7552]
[1746993868642,0.05,2497.4,2496.9,0.0400454]
[1746993868843,0.05,2497.4,2496.8,0.7552]
[1746993869488,0.05,2497.4,2496.9,0.0400454]
[1746993869872,0.04670179,2497.4,2496.9,0.0400454]
[1746993870989,4.0049036,2497.0,2495.6,0.8172]
[1746993871152,2.00346875,2497.3,2495.7,0.47647389]
[1746993871352,4.00451705,2497.2,2495.8,0.8172]
[1746993871546,4.00451705,2497.2,2496.0,0.8172]
[1746993871756,6.00786487,2497.3,2496.2,0.8172]
[1746993871955,2.00346875,2497.3,2496.2,0.8172]
[1746993872156,2.00346875,2497.3,2496.3,8.0400539]
[1746993872456,4.00472719,2497.1,2496.2,4.80062]
[1746993872651,2.00346875,2497.3,2496.2,4.80062]
[1746993872981,2.00346875,2497.3,2496.4,0.8172]
[1746993873181,4.00462776,2497.2,2496.4,0.8172]
[1746993873486,6.00789464,2497.3,2496.5,0.04005133]
[1746993874395,4.00448976,2497.2,2496.5,0.04005133]
[1746993874560,2.00346875,2497.3,2496.4,2.097262]
[1746993874758,6.00785462,2497.3,2496.5,0.04005132]
[1746993875173,2.00346875,2497.3,2496.6,0.7584]
[1746993875495,2.00346875,2497.3,2496.6,0.9622462]
[1746993876161,2.00346875,2497.3,2496.7,0.04004761]
[1746993876501,2.00346875,2497.3,2496.7,0.04004598]
[1746993876675,0.04670179,2497.4,2496.7,0.04004598]
[1746993877002,0.04670179,2497.4,2496.6,0.9622462]
[1746993879789,0.04670179,2497.4,2496.7,0.7638]
[1746993880011,0.04670179,2497.4,2496.8,8.0]
[1746993880299,0.04670179,2497.4,2496.9,0.04004413]
[1746993883300,0.04670179,2497.4,2496.7,0.7638]
[1746993883506,4.00476808,2497.1,2496.7,0.7638]
[1746993883667,4.00464832,2497.1,2496.7,0.7638]
[1746993884402,4.00522861,2496.8,2496.4,0.8054]
[1746993884565,6.00821859,2497.1,2496.4,0.8054]
[1746993884767,4.00484186,2497.0,2496.4,8.8054]
[1746993885169,6.00818531,2497.1,2496.4,8.8054]
[1746993885421,2.00346875,2497.1,2496.4,10.06789453]
[1746993885703,0.04670179,2497.4,2496.6,0.8026]
[1746993886074,3.92485474,2497.0,2496.0,0.8026]
[1746993886307,4.00524152,2496.8,2496.0,0.8026]
[1746993886467,4.00500743,2496.9,2496.0,0.8026]
[1746993886801,4.00521021,2496.8,2496.0,0.8026]
[1746993887003,4.00504851,2496.9,2496.0,0.8026]
[1746993887212,0.7989,2497.3,2496.0,8.8026]
[1746993887213,4.2139,2497.3,2496.0,8.8026]
[1746993887505,2.05017054,2497.4,2496.2,0.8026]
[1746993887886,0.04670179,2497.4,2496.2,0.8026]
[1746993888182,4.05094501,2497.4,2496.5,0.8026]
[1746993888506,0.04670179,2497.4,2496.7,8.0]
[1746993888678,4.05094752,2497.4,2496.7,0.8026]
[1746993889010,0.04670179,2497.4,2496.7,2.02476]
[1746993891769,0.04670179,2497.4,2496.8,0.84264456]
[1746993892431,0.04670179,2497.4,2496.8,0.8026]
[1746993894199,0.04670179,2497.4,2496.9,0.84883881]
[1746993894699,0.04670179,2497.4,2496.9,0.8088]
[1746993894907,0.04670179,2497.4,2497.1,8.8088]
[1746993895095,0.04670179,2497.4,2497.3,8.0]
[1746993895296,0.04670179,2497.4,2497.3,11.563436]
[1746993896119,0.04670179,2497.4,2497.3,3.563436]
[1746993896282,0.04670179,2497.4,2496.7,0.8088]
[1746993896815,3.92485474,2497.2,2496.4,0.8088]
[1746993897116,4.00505621,2496.9,2496.4,0.8088]
[1746993897294,4.00486162,2497.0,2496.4,0.8088]
[1746993897496,7.92936936,2497.2,2496.4,0.8088]
[1746993897698,4.00478145,2497.1,2496.4,0.8088]
[1746993897927,4.00480576,2497.0,2496.4,0.8088]
[1746993898218,0.7547,2497.1,2496.4,0.8088]
[1746993898781,4.75942435,2497.1,2496.4,0.8088]
[1746993899479,0.2216932,2497.0,2496.4,0.8088]
[1746993899985,4.0049934,2496.9,2496.4,0.8088]
[1746993900535,4.00464538,2497.1,2496.1,0.7538]
[1746993900682,7.34385474,2497.2,2496.1,0.7538]
[1746993900882,4.00436059,2497.3,2496.2,0.04005846]
[1746993901117,4.00476772,2497.1,2496.1,0.7538]
[1746993901281,3.36,2497.3,2496.1,0.7538]
[1746993901483,0.2216091,2497.2,2496.1,0.7538]
[1746993901924,0.2216091,2497.2,2496.2,1.16508]
[1746993902120,0.2216091,2497.2,2496.4,8.0]
[1746993902288,0.04670179,2497.4,2496.5,0.7538]
[1746993902621,4.05092561,2497.4,2496.5,0.7538]
[1746993902819,0.04670179,2497.4,2496.5,0.7538]
[1746993903043,0.22165713,2497.3,2496.5,0.7538]
[1746993903251,0.22165713,2497.3,2496.7,0.7538]
[1746993903446,0.05,2498.4,2497.7,0.7538]
[1746993904547,0.05,2498.4,2498.0,0.7507]
[1746993904707,0.05,2498.4,2498.3,0.7507]
[1746993904907,0.05,2498.4,2498.3,17.92939987]
[1746993905143,0.05,2498.4,2498.3,25.11863699]
[1746993905351,3.45878785,2499.4,2498.5,0.7507]
[1746993906245,4.00153453,2499.1,2498.5,0.7507]
[1746993906408,4.00137251,2499.2,2498.5,0.7507]
[1746993906604,7.36824735,2499.3,2498.5,0.7507]
[1746993907009,3.45878785,2499.4,2498.6,0.79071911]
[1746993907249,3.45878785,2499.4,2498.8,0.7507]
[1746993907625,4.00126335,2499.3,2498.8,0.7507]
[1746993907829,0.05,2499.4,2498.8,0.7507]
[1746993908059,4.0011687,2499.3,2498.8,0.7507]
[1746993908227,0.05,2499.4,2498.3,3.418]
[1746993908228,0.05,2499.4,2498.3,0.7507]
[1746993908433,4.00190539,2498.9,2498.3,0.7507]
[1746993908735,4.00176077,2498.9,2498.3,0.7507]
[1746993908932,4.00165561,2499.0,2498.3,0.7507]
[1746993909132,4.00178469,2498.9,2498.3,0.7507]
[1746993909373,4.00253713,2498.5,2497.8,0.766]
[1746993909576,0.7963,2499.0,2497.8,0.766]
[1746993909577,4.00223871,2498.7,2497.8,0.766]